[Event "Betsys MČR v online bleskovém šachu 2021"]
[Site "Chess.com"]
[Date "2021.04.17"]
[Round "3"]
[White "MilosJi"]
[Black "horvi1"]
[Result "1-0"]
[WhiteElo "2613"]
[BlackElo "2231"]
[TimeControl "180+1"]
[EndTime "9:27:19 PDT"]
[Termination "Uživatel MilosJi zvítězil na čas"]

1. Nf3 {[%clk 0:03:00.9]} 1... Nf6 {[%clk 0:02:59.4]} 2. c4 {[%clk 0:03:00.5]}
2... e6 {[%clk 0:02:59.1]} 3. g3 {[%clk 0:03:00.9]} 3... d5 {[%clk 0:02:58.7]}
4. Bg2 {[%clk 0:03:01.2]} 4... Bd6 {[%clk 0:02:58.2]} 5. O-O {[%clk 0:03:01.1]}
5... O-O {[%clk 0:02:57.9]} 6. b3 {[%clk 0:03:01.4]} 6... c5 {[%clk 0:02:56.7]}
7. cxd5 {[%clk 0:02:59.6]} 7... exd5 {[%clk 0:02:56.4]} 8. d4 {[%clk 0:02:59.1]}
8... Nc6 {[%clk 0:02:48]} 9. Nc3 {[%clk 0:02:55.4]} 9... a6 {[%clk 0:02:34.1]}
10. Bb2 {[%clk 0:02:41.3]} 10... Bg4 {[%clk 0:02:24.9]} 11. dxc5 {[%clk
0:02:39.8]} 11... Bxc5 {[%clk 0:02:18.1]} 12. Rc1 {[%clk 0:02:39.9]} 12... Ba7
{[%clk 0:02:06.1]} 13. h3 {[%clk 0:02:19.8]} 13... Bh5 {[%clk 0:02:04.7]} 14.
Na4 {[%clk 0:01:41.7]} 14... Ne4 {[%clk 0:01:48.3]} 15. g4 {[%clk 0:01:41.8]}
15... Bg6 {[%clk 0:01:46.6]} 16. Nd4 {[%clk 0:01:42]} 16... Rc8 {[%clk
0:01:35.6]} 17. Nxc6 {[%clk 0:01:32.5]} 17... bxc6 {[%clk 0:01:33.4]} 18. e3
{[%clk 0:01:29.6]} 18... Qh4 {[%clk 0:01:11.8]} 19. Bd4 {[%clk 0:01:21.3]} 19...
Bb8 {[%clk 0:01:08.9]} 20. Nc5 {[%clk 0:01:16]} 20... h5 {[%clk 0:01:04.2]} 21.
Nd7 {[%clk 0:01:04.5]} 21... hxg4 {[%clk 0:00:59.4]} 22. Qxg4 {[%clk 0:01:02.5]}
22... Qxg4 {[%clk 0:00:53.6]} 23. hxg4 {[%clk 0:01:02.3]} 23... Rfd8 {[%clk
0:00:39.8]} 24. Nxb8 {[%clk 0:01:02.3]} 24... Rxb8 {[%clk 0:00:39.7]} 25. Rxc6
{[%clk 0:01:01.2]} 25... a5 {[%clk 0:00:33.6]} 26. Ra6 {[%clk 0:01:01.1]} 26...
Rb5 {[%clk 0:00:31.7]} 27. Rc1 {[%clk 0:00:58.9]} 27... f6 {[%clk 0:00:23.6]}
28. Bf1 {[%clk 0:00:57.8]} 28... Rb7 {[%clk 0:00:17.6]} 29. Rxa5 {[%clk
0:00:57.2]} 29... Nd2 {[%clk 0:00:16.7]} 30. Be2 {[%clk 0:00:53.8]} 30... Be4
{[%clk 0:00:13.9]} 31. f4 {[%clk 0:00:44.8]} 31... Kf7 {[%clk 0:00:13.4]} 32.
Kf2 {[%clk 0:00:44.6]} 32... Rh8 {[%clk 0:00:13.2]} 33. Kg3 {[%clk 0:00:41]}
33... Rh6 {[%clk 0:00:09.2]} 34. Ra7 {[%clk 0:00:39.3]} 34... Rxa7 {[%clk
0:00:08.2]} 35. Bxa7 {[%clk 0:00:40.2]} 35... g5 {[%clk 0:00:06]} 36. Bd4 {[%clk
0:00:35.7]} 36... gxf4+ {[%clk 0:00:04.3]} 37. exf4 {[%clk 0:00:35.8]} 37... Bg6
{[%clk 0:00:02.9]} 38. Rc7+ {[%clk 0:00:31.7]} 38... Ke8 {[%clk 0:00:02.3]} 39.
Bb5+ {[%clk 0:00:28]} 39... Kd8 {[%clk 0:00:01.9]} 40. Rd7+ {[%clk 0:00:27.8]}
40... Kc8 {[%clk 0:00:02.2]} 41. Rxd5 {[%clk 0:00:26.7]} 41... Ne4+ {[%clk
0:00:03.1]} 42. Kg2 {[%clk 0:00:26.7]} 1-0

[Event "Betsys MČR v online bleskovém šachu 2021"]
[Site "Chess.com"]
[Date "2021.04.17"]
[Round "3"]
[White "BRNOTEACHER"]
[Black "tucnak64"]
[Result "1-0"]
[WhiteElo "2367"]
[BlackElo "2102"]
[TimeControl "180+1"]
[EndTime "9:27:19 PDT"]
[Termination "Uživatel BRNOTEACHER zvítězil na čas"]

1. d4 {[%clk 0:03:00.9]} 1... g6 {[%clk 0:02:59.9]} 2. e4 {[%clk 0:02:57.3]}
2... Bg7 {[%clk 0:02:59.7]} 3. c4 {[%clk 0:02:54.7]} 3... c6 {[%clk 0:02:44.7]}
4. Nc3 {[%clk 0:02:50.7]} 4... d5 {[%clk 0:02:35.3]} 5. cxd5 {[%clk 0:02:43.5]}
5... cxd5 {[%clk 0:02:36.2]} 6. exd5 {[%clk 0:02:43.5]} 6... Nf6 {[%clk
0:02:32.7]} 7. Qb3 {[%clk 0:02:34.2]} 7... O-O {[%clk 0:02:28.1]} 8. Nge2 {[%clk
0:02:26.3]} 8... e6 {[%clk 0:02:09.2]} 9. dxe6 {[%clk 0:02:10.5]} 9... Bxe6
{[%clk 0:02:10.1]} 10. Qxb7 {[%clk 0:02:10]} 10... Nbd7 {[%clk 0:02:09.8]} 11.
Bf4 {[%clk 0:01:58.4]} 11... Nb6 {[%clk 0:02:01.6]} 12. Be5 {[%clk 0:01:42.6]}
12... Nc4 {[%clk 0:01:51.2]} 13. O-O-O {[%clk 0:01:35.6]} 13... Qa5 {[%clk
0:01:31.6]} 14. Qb5 {[%clk 0:01:24.6]} 14... Qxb5 {[%clk 0:01:16.4]} 15. Nxb5
{[%clk 0:01:25.5]} 15... Ne4 {[%clk 0:01:16]} 16. Bg3 {[%clk 0:01:11.6]} 16...
Bf5 {[%clk 0:00:47.7]} 17. Nec3 {[%clk 0:01:05]} 17... Bh6+ {[%clk 0:00:41.1]}
18. f4 {[%clk 0:01:03.7]} 18... Rfc8 {[%clk 0:00:37.5]} 19. Bxc4 {[%clk
0:01:00.7]} 19... Rxc4 {[%clk 0:00:36.8]} 20. Rhe1 {[%clk 0:00:47.8]} 20... Bf8
{[%clk 0:00:24.3]} 21. d5 {[%clk 0:00:29.8]} 21... a6 {[%clk 0:00:24]} 22. Nd4
{[%clk 0:00:29.1]} 22... Nxc3 {[%clk 0:00:18.2]} 23. bxc3 {[%clk 0:00:28.4]}
23... Rxc3+ {[%clk 0:00:18.2]} 24. Kb2 {[%clk 0:00:28.2]} 24... Rc4 {[%clk
0:00:11.7]} 25. Nxf5 {[%clk 0:00:27.1]} 25... gxf5 {[%clk 0:00:12.6]} 26. d6
{[%clk 0:00:25.8]} 26... Rb8+ {[%clk 0:00:09.7]} 27. Ka3 {[%clk 0:00:22]} 27...
Rbb4 {[%clk 0:00:08.5]} 28. Rd3 {[%clk 0:00:19.3]} 28... Bg7 {[%clk 0:00:05.5]}
29. Re8+ {[%clk 0:00:16.9]} 29... Bf8 {[%clk 0:00:04.2]} 30. Rxf8+ {[%clk
0:00:14.3]} 30... Kxf8 {[%clk 0:00:03.2]} 31. Be1 {[%clk 0:00:09.1]} 31... Ra4+
{[%clk 0:00:03.1]} 32. Kb3 {[%clk 0:00:08.9]} 32... Ke8 {[%clk 0:00:03.4]} 33.
d7+ {[%clk 0:00:08.4]} 33... Kd8 {[%clk 0:00:03.7]} 34. Bh4+ {[%clk 0:00:08.3]}
34... Kc7 {[%clk 0:00:03.2]} 35. d8=Q+ {[%clk 0:00:08.5]} 1-0

[Event "Betsys MČR v online bleskovém šachu 2021"]
[Site "Chess.com"]
[Date "2021.04.17"]
[Round "3"]
[White "Paulz64"]
[Black "zdenav"]
[Result "1-0"]
[WhiteElo "2499"]
[BlackElo "1835"]
[TimeControl "180+1"]
[EndTime "9:27:19 PDT"]
[Termination "Uživatel Paulz64 zvítězil matem"]

1. d4 {[%clk 0:03:00.9]} 1... e6 {[%clk 0:02:59.3]} 2. c4 {[%clk 0:03:01.4]}
2... d5 {[%clk 0:02:59.3]} 3. Nc3 {[%clk 0:03:01.2]} 3... Ne7 {[%clk 0:02:59.3]}
4. Bg5 {[%clk 0:03:00.8]} 4... f6 {[%clk 0:02:58.8]} 5. Bh4 {[%clk 0:03:00.7]}
5... c6 {[%clk 0:02:58.3]} 6. e3 {[%clk 0:03:00.3]} 6... Ng6 {[%clk 0:02:58.3]}
7. Bg3 {[%clk 0:03:00.2]} 7... Bd6 {[%clk 0:02:57.2]} 8. Bd3 {[%clk 0:02:59.8]}
8... O-O {[%clk 0:02:55.4]} 9. Nge2 {[%clk 0:02:53.1]} 9... Bxg3 {[%clk
0:02:52.1]} 10. hxg3 {[%clk 0:02:52.3]} 10... Nd7 {[%clk 0:02:49.9]} 11. Nf4
{[%clk 0:02:52.3]} 11... Qe8 {[%clk 0:02:45.6]} 12. Qh5 {[%clk 0:02:47.4]} 12...
Nxf4 {[%clk 0:02:33.2]} 13. Qxh7+ {[%clk 0:02:36.8]} 13... Kf7 {[%clk
0:02:32.6]} 14. gxf4 {[%clk 0:02:36.7]} 14... Ke7 {[%clk 0:02:31.4]} 15. Qxg7+
{[%clk 0:02:29]} 15... Rf7 {[%clk 0:02:30.1]} 16. Qg3 {[%clk 0:02:25.7]} 16...
f5 {[%clk 0:02:29.4]} 17. O-O-O {[%clk 0:02:20.4]} 17... Nf6 {[%clk 0:02:28.9]}
18. f3 {[%clk 0:02:15.3]} 18... Qg8 {[%clk 0:02:24.7]} 19. Qf2 {[%clk
0:02:06.5]} 19... Rg7 {[%clk 0:02:19.7]} 20. Rh2 {[%clk 0:02:06.6]} 20... Bd7
{[%clk 0:02:17.9]} 21. Rdh1 {[%clk 0:01:57.1]} 21... Qf7 {[%clk 0:02:15.9]} 22.
Qc2 {[%clk 0:01:49.2]} 22... dxc4 {[%clk 0:02:07.7]} 23. Bxc4 {[%clk 0:01:48.8]}
23... b5 {[%clk 0:02:07.3]} 24. Bf1 {[%clk 0:01:40.8]} 24... b4 {[%clk
0:02:00.6]} 25. Na4 {[%clk 0:01:37.8]} 25... Nd5 {[%clk 0:01:58.5]} 26. Qc5+
{[%clk 0:01:19.2]} 26... Kf6 {[%clk 0:01:53.9]} 27. e4 {[%clk 0:01:12.7]} 27...
fxe4 {[%clk 0:01:42.5]} 28. fxe4 {[%clk 0:01:11.2]} 28... Nxf4 {[%clk
0:01:42.2]} 29. Qxb4 {[%clk 0:00:36]} 29... Rag8 {[%clk 0:01:28.5]} 30. Nc5
{[%clk 0:00:31.2]} 30... Bc8 {[%clk 0:01:14.1]} 31. e5+ {[%clk 0:00:27.8]} 31...
Kf5 {[%clk 0:01:12.5]} 32. Qd2 {[%clk 0:00:26.2]} 32... Rg3 {[%clk 0:01:03]} 33.
Kb1 {[%clk 0:00:18.8]} 33... Qg6 {[%clk 0:00:55.7]} 34. Qc2+ {[%clk 0:00:18.4]}
34... Kg5 {[%clk 0:00:50.1]} 35. Ne4+ {[%clk 0:00:18.5]} 35... Kg4 {[%clk
0:00:43.8]} 36. Rh4+ {[%clk 0:00:18]} 36... Kf5 {[%clk 0:00:06.8]} 37. Nxg3+
{[%clk 0:00:15.8]} 37... Kg5 {[%clk 0:00:06.6]} 38. Ne4+ {[%clk 0:00:13.9]}
38... Kf5 {[%clk 0:00:05.8]} 39. Nf2+ {[%clk 0:00:13.5]} 39... Kg5 {[%clk
0:00:05.5]} 40. Rg4# {[%clk 0:00:13.9]} 1-0

[Event "Betsys MČR v online bleskovém šachu 2021"]
[Site "Chess.com"]
[Date "2021.04.17"]
[Round "3"]
[White "Lisak007"]
[Black "TerezaRodshtein"]
[Result "0-1"]
[WhiteElo "1776"]
[BlackElo "2182"]
[TimeControl "180+1"]
[EndTime "9:27:19 PDT"]
[Termination "Uživatel TerezaRodshtein zvítězil na čas"]

1. e4 {[%clk 0:03:00.9]} 1... c5 {[%clk 0:02:58.9]} 2. d3 {[%clk 0:02:55.6]}
2... Nc6 {[%clk 0:02:54.9]} 3. Nd2 {[%clk 0:02:55.6]} 3... g6 {[%clk 0:02:54.9]}
4. g3 {[%clk 0:02:55.9]} 4... Bg7 {[%clk 0:02:45.2]} 5. Bg2 {[%clk 0:02:55.6]}
5... e6 {[%clk 0:02:45.1]} 6. Ne2 {[%clk 0:02:54.1]} 6... Nge7 {[%clk
0:02:43.2]} 7. O-O {[%clk 0:02:53.2]} 7... O-O {[%clk 0:02:42.3]} 8. f4 {[%clk
0:02:53.1]} 8... d5 {[%clk 0:02:41.3]} 9. e5 {[%clk 0:02:46.9]} 9... b5 {[%clk
0:02:31.6]} 10. c3 {[%clk 0:02:42.3]} 10... Bb7 {[%clk 0:02:30.7]} 11. d4 {[%clk
0:02:42.3]} 11... c4 {[%clk 0:01:59.3]} 12. g4 {[%clk 0:02:38.9]} 12... f6
{[%clk 0:01:49.5]} 13. Ng3 {[%clk 0:02:37.9]} 13... b4 {[%clk 0:01:38]} 14. Nf3
{[%clk 0:02:37]} 14... f5 {[%clk 0:01:22.4]} 15. Ng5 {[%clk 0:02:29.3]} 15...
Bc8 {[%clk 0:01:14.3]} 16. h4 {[%clk 0:02:28.2]} 16... fxg4 {[%clk 0:00:48.2]}
17. Qxg4 {[%clk 0:02:26.7]} 17... Nf5 {[%clk 0:00:48.5]} 18. h5 {[%clk
0:02:15.9]} 18... Nce7 {[%clk 0:00:35.4]} 19. hxg6 {[%clk 0:02:06.3]} 19... Nxg6
{[%clk 0:00:27.4]} 20. cxb4 {[%clk 0:01:52.3]} 20... Nxd4 {[%clk 0:00:18.2]} 21.
Nh5 {[%clk 0:01:49.8]} 21... Nc6 {[%clk 0:00:10.5]} 22. Nxg7 {[%clk 0:01:34.5]}
22... Kxg7 {[%clk 0:00:09.6]} 23. Nxe6+ {[%clk 0:01:34.5]} 23... Bxe6 {[%clk
0:00:09.3]} 24. Qxe6 {[%clk 0:01:33.5]} 24... Nce7 {[%clk 0:00:09.1]} 25. f5
{[%clk 0:01:15.2]} 25... Nh4 {[%clk 0:00:08.1]} 26. Bh6+ {[%clk 0:00:59.3]}
26... Kh8 {[%clk 0:00:08.1]} 27. Bxf8 {[%clk 0:00:39]} 27... Qxf8 {[%clk
0:00:09]} 28. f6 {[%clk 0:00:39.1]} 28... Neg6 {[%clk 0:00:06.3]} 29. Qxd5
{[%clk 0:00:35.5]} 29... Rd8 {[%clk 0:00:05.3]} 30. Qe4 {[%clk 0:00:23.6]} 30...
Rd2 {[%clk 0:00:03.8]} 31. Bh1 {[%clk 0:00:19]} 31... Qxb4 {[%clk 0:00:03.5]}
32. f7 {[%clk 0:00:14.8]} 32... Qc5+ {[%clk 0:00:04.1]} 0-1

[Event "Betsys MČR v online bleskovém šachu 2021"]
[Site "Chess.com"]
[Date "2021.04.17"]
[Round "3"]
[White "DrStillestein"]
[Black "KdybyNecoTakNic"]
[Result "1-0"]
[WhiteElo "2119"]
[BlackElo "2297"]
[TimeControl "180+1"]
[EndTime "9:27:20 PDT"]
[Termination "Uživatel DrStillestein zvítězil na čas"]

1. c4 {[%clk 0:03:00.9]} 1... Nf6 {[%clk 0:02:59.4]} 2. Nc3 {[%clk 0:03:01.2]}
2... g6 {[%clk 0:02:59.3]} 3. g3 {[%clk 0:03:01.7]} 3... Bg7 {[%clk 0:02:58.2]}
4. Bg2 {[%clk 0:03:02.3]} 4... c6 {[%clk 0:02:58]} 5. Nf3 {[%clk 0:02:59.7]}
5... O-O {[%clk 0:02:53.9]} 6. O-O {[%clk 0:02:59.6]} 6... d5 {[%clk 0:02:52.7]}
7. cxd5 {[%clk 0:02:54.9]} 7... cxd5 {[%clk 0:02:52.5]} 8. d4 {[%clk 0:02:55.3]}
8... Ne4 {[%clk 0:02:49.4]} 9. Nd2 {[%clk 0:02:37.5]} 9... Nxc3 {[%clk 0:02:43]}
10. bxc3 {[%clk 0:02:37.4]} 10... Nc6 {[%clk 0:02:42.3]} 11. Qb3 {[%clk
0:02:36]} 11... e6 {[%clk 0:02:25.3]} 12. Ba3 {[%clk 0:02:35.7]} 12... Re8
{[%clk 0:02:24]} 13. Rab1 {[%clk 0:02:34.9]} 13... Qa5 {[%clk 0:02:11.5]} 14. e3
{[%clk 0:02:24.8]} 14... Qa6 {[%clk 0:02:05.1]} 15. Rfc1 {[%clk 0:02:20.1]}
15... Qd3 {[%clk 0:02:00.5]} 16. Qc2 {[%clk 0:02:17.4]} 16... Qxc2 {[%clk
0:01:50.6]} 17. Rxc2 {[%clk 0:02:18.3]} 17... b6 {[%clk 0:01:45.7]} 18. Bf1
{[%clk 0:02:16]} 18... Bd7 {[%clk 0:01:34.7]} 19. c4 {[%clk 0:02:07]} 19... dxc4
{[%clk 0:01:34.1]} 20. Nxc4 {[%clk 0:02:03.7]} 20... Bf8 {[%clk 0:01:17.7]} 21.
Bxf8 {[%clk 0:02:02]} 21... Kxf8 {[%clk 0:01:17.5]} 22. Bg2 {[%clk 0:01:51.7]}
22... Rab8 {[%clk 0:01:14.6]} 23. Bxc6 {[%clk 0:01:37.6]} 23... Bxc6 {[%clk
0:01:14.5]} 24. Nd6 {[%clk 0:01:37.3]} 24... Ba4 {[%clk 0:01:11.1]} 25. Rc7
{[%clk 0:01:20.1]} 25... Re7 {[%clk 0:01:03.2]} 26. Rbc1 {[%clk 0:01:19.6]}
26... Rd8 {[%clk 0:00:46.3]} 27. Nc8 {[%clk 0:00:54.4]} 27... Rxc7 {[%clk
0:00:40.1]} 28. Rxc7 {[%clk 0:00:55.3]} 28... Bb5 {[%clk 0:00:21.2]} 29. Nxa7
{[%clk 0:00:50.9]} 29... Bd3 {[%clk 0:00:20.6]} 30. Nc6 {[%clk 0:00:38.2]} 30...
Ra8 {[%clk 0:00:20.1]} 31. Nb4 {[%clk 0:00:38.2]} 31... Be4 {[%clk 0:00:18.6]}
32. Rc3 {[%clk 0:00:35]} 32... Ra4 {[%clk 0:00:17]} 33. a3 {[%clk 0:00:34.3]}
33... Ke7 {[%clk 0:00:14.7]} 34. Kf1 {[%clk 0:00:34.7]} 34... Kf6 {[%clk
0:00:14.2]} 35. Ke2 {[%clk 0:00:33.2]} 35... h5 {[%clk 0:00:12.8]} 36. f3 {[%clk
0:00:33.5]} 36... Bb7 {[%clk 0:00:10.4]} 37. e4 {[%clk 0:00:33.3]} 37... Kg5
{[%clk 0:00:08.2]} 38. Ke3 {[%clk 0:00:33.2]} 38... h4 {[%clk 0:00:08.1]} 39. g4
{[%clk 0:00:31.7]} 39... Ba6 {[%clk 0:00:04.5]} 40. Nxa6 {[%clk 0:00:28.3]}
40... Rxa6 {[%clk 0:00:04.3]} 41. Rb3 {[%clk 0:00:28.5]} 41... f5 {[%clk
0:00:03.3]} 42. h3 {[%clk 0:00:25.5]} 1-0

[Event "Betsys MČR v online bleskovém šachu 2021"]
[Site "Chess.com"]
[Date "2021.04.17"]
[Round "3"]
[White "Cenisuh"]
[Black "David_Mic"]
[Result "0-1"]
[WhiteElo "1616"]
[BlackElo "1993"]
[TimeControl "180+1"]
[EndTime "9:27:20 PDT"]
[Termination "Uživatel David_Mic zvítězil na čas"]

1. Nf3 {[%clk 0:03:00.9]} 1... Nf6 {[%clk 0:02:58.9]} 2. d4 {[%clk 0:03:00.7]}
2... g6 {[%clk 0:02:58.8]} 3. c4 {[%clk 0:03:00.5]} 3... Bg7 {[%clk 0:02:58.9]}
4. g3 {[%clk 0:03:01]} 4... d6 {[%clk 0:02:59]} 5. Bg2 {[%clk 0:03:01.3]} 5...
O-O {[%clk 0:02:58.8]} 6. O-O {[%clk 0:03:01.1]} 6... Nbd7 {[%clk 0:02:57.3]} 7.
Nc3 {[%clk 0:03:01.1]} 7... e5 {[%clk 0:02:55.5]} 8. e3 {[%clk 0:02:56.1]} 8...
c6 {[%clk 0:02:53.5]} 9. b3 {[%clk 0:02:52.1]} 9... Re8 {[%clk 0:02:53.2]} 10.
Bb2 {[%clk 0:02:49.6]} 10... Qc7 {[%clk 0:02:51.9]} 11. Rc1 {[%clk 0:02:40.9]}
11... b6 {[%clk 0:02:50.2]} 12. b4 {[%clk 0:02:31.3]} 12... Bb7 {[%clk
0:02:49.8]} 13. dxe5 {[%clk 0:02:30.5]} 13... dxe5 {[%clk 0:02:49.1]} 14. Nd2
{[%clk 0:02:24.8]} 14... Rad8 {[%clk 0:02:46.8]} 15. Qe2 {[%clk 0:02:24.9]}
15... Bf8 {[%clk 0:02:40]} 16. a3 {[%clk 0:02:23.7]} 16... a6 {[%clk 0:02:22.7]}
17. Rfd1 {[%clk 0:02:23]} 17... c5 {[%clk 0:02:16.2]} 18. b5 {[%clk 0:02:18]}
18... Bxg2 {[%clk 0:02:11]} 19. Kxg2 {[%clk 0:02:18.2]} 19... a5 {[%clk
0:02:10]} 20. e4 {[%clk 0:02:12]} 20... Be7 {[%clk 0:02:01.7]} 21. Nf3 {[%clk
0:02:09.2]} 21... Nf8 {[%clk 0:01:57.7]} 22. Nd5 {[%clk 0:02:06.3]} 22... Nxd5
{[%clk 0:01:53]} 23. exd5 {[%clk 0:02:06.5]} 23... Bd6 {[%clk 0:01:51.9]} 24.
Re1 {[%clk 0:01:58.9]} 24... f6 {[%clk 0:01:37.1]} 25. Qd2 {[%clk 0:01:48]}
25... Qf7 {[%clk 0:01:29.6]} 26. Re4 {[%clk 0:01:37.4]} 26... Nd7 {[%clk
0:01:22.3]} 27. Qh6 {[%clk 0:01:26.9]} 27... Qg7 {[%clk 0:01:21.7]} 28. Qxg7+
{[%clk 0:01:26.7]} 28... Kxg7 {[%clk 0:01:22.6]} 29. Rce1 {[%clk 0:01:22.4]}
29... Kf7 {[%clk 0:01:19.7]} 30. g4 {[%clk 0:01:19.4]} 30... h6 {[%clk
0:01:17.5]} 31. h4 {[%clk 0:01:17.1]} 31... f5 {[%clk 0:01:10.1]} 32. gxf5
{[%clk 0:01:12.8]} 32... gxf5 {[%clk 0:01:09.5]} 33. R4e2 {[%clk 0:01:09.6]}
33... e4 {[%clk 0:01:09.5]} 34. Nd2 {[%clk 0:01:02.5]} 34... Be5 {[%clk
0:00:56.9]} 35. Bxe5 {[%clk 0:00:54.7]} 35... Nxe5 {[%clk 0:00:56.5]} 36. Rg1
{[%clk 0:00:39.5]} 36... Rg8+ {[%clk 0:00:48.8]} 37. Kf1 {[%clk 0:00:39]} 37...
Rxg1+ {[%clk 0:00:39.9]} 38. Kxg1 {[%clk 0:00:39.1]} 38... Rg8+ {[%clk
0:00:40.1]} 39. Kh2 {[%clk 0:00:32.9]} 39... Rg4 {[%clk 0:00:39.2]} 40. Kh3
{[%clk 0:00:31.4]} 40... Rg1 {[%clk 0:00:32.7]} 41. f4 {[%clk 0:00:19.4]} 41...
Nd3 {[%clk 0:00:26.7]} 42. Kh2 {[%clk 0:00:09.5]} 42... Ra1 {[%clk 0:00:24.9]}
0-1

[Event "Betsys MČR v online bleskovém šachu 2021"]
[Site "Chess.com"]
[Date "2021.04.17"]
[Round "3"]
[White "AJedlicka"]
[Black "jarosymon"]
[Result "1-0"]
[WhiteElo "2197"]
[BlackElo "1780"]
[TimeControl "180+1"]
[EndTime "9:27:21 PDT"]
[Termination "Uživatel AJedlicka zvítězil na čas"]

1. d4 {[%clk 0:03:00.9]} 1... d5 {[%clk 0:02:59.6]} 2. c4 {[%clk 0:02:59.8]}
2... e6 {[%clk 0:02:59.2]} 3. Nc3 {[%clk 0:02:59]} 3... c5 {[%clk 0:02:59.3]} 4.
cxd5 {[%clk 0:02:57.3]} 4... cxd4 {[%clk 0:02:59.2]} 5. Qa4+ {[%clk 0:02:56.4]}
5... Bd7 {[%clk 0:02:58.5]} 6. Qxd4 {[%clk 0:02:55.5]} 6... exd5 {[%clk
0:02:57.3]} 7. Qxd5 {[%clk 0:02:55.2]} 7... Nc6 {[%clk 0:02:55.1]} 8. Nf3 {[%clk
0:02:54.2]} 8... Nf6 {[%clk 0:02:55.1]} 9. Qd1 {[%clk 0:02:53.1]} 9... Bc5
{[%clk 0:02:54.5]} 10. e3 {[%clk 0:02:52.8]} 10... Qe7 {[%clk 0:02:54.4]} 11.
Be2 {[%clk 0:02:52.4]} 11... O-O-O {[%clk 0:02:54.1]} 12. O-O {[%clk 0:02:51.9]}
12... g5 {[%clk 0:02:53.3]} 13. b4 {[%clk 0:02:49.8]} 13... Bxb4 {[%clk
0:02:49.3]} 14. Qb3 {[%clk 0:02:45.4]} 14... g4 {[%clk 0:02:24.6]} 15. Nd4
{[%clk 0:02:43.1]} 15... Nxd4 {[%clk 0:02:17.3]} 16. exd4 {[%clk 0:02:41.5]}
16... Kb8 {[%clk 0:02:16.3]} 17. Bf4+ {[%clk 0:02:39.5]} 17... Bd6 {[%clk
0:02:08.4]} 18. Bxd6+ {[%clk 0:02:33.7]} 18... Qxd6 {[%clk 0:02:07.8]} 19. Rab1
{[%clk 0:02:29.6]} 19... Bc6 {[%clk 0:01:58.5]} 20. Nb5 {[%clk 0:02:28.7]} 20...
Qf4 {[%clk 0:01:44.4]} 21. Qa3 {[%clk 0:02:16.3]} 21... a6 {[%clk 0:01:39.7]}
22. Nc3 {[%clk 0:02:06]} 22... Ne4 {[%clk 0:01:23.9]} 23. Bxa6 {[%clk
0:01:51.2]} 23... Nxc3 {[%clk 0:01:15.8]} 24. Qxc3 {[%clk 0:01:48.4]} 24... Qxd4
{[%clk 0:00:56.5]} 25. Qg3+ {[%clk 0:01:42.3]} 25... Ka7 {[%clk 0:00:47.3]} 26.
Be2 {[%clk 0:01:36.9]} 26... h5 {[%clk 0:00:43.3]} 27. Qa3+ {[%clk 0:01:33.8]}
27... Kb8 {[%clk 0:00:40.2]} 28. Rb4 {[%clk 0:01:30.6]} 28... Qd5 {[%clk
0:00:39.2]} 29. Qg3+ {[%clk 0:01:20.2]} 29... Qd6 {[%clk 0:00:27.7]} 30. Rfb1
{[%clk 0:01:04.6]} 30... Qxg3 {[%clk 0:00:23.8]} 31. hxg3 {[%clk 0:01:01.1]}
31... Kc7 {[%clk 0:00:23.8]} 32. a4 {[%clk 0:00:54.3]} 32... Rd2 {[%clk
0:00:22.7]} 33. Bb5 {[%clk 0:00:47.1]} 33... Rhd8 {[%clk 0:00:19.8]} 34. Bxc6
{[%clk 0:00:45.6]} 34... bxc6 {[%clk 0:00:19.1]} 35. Rb7+ {[%clk 0:00:43.5]}
35... Kd6 {[%clk 0:00:19]} 36. Rxf7 {[%clk 0:00:42.9]} 36... Ke6 {[%clk
0:00:17.5]} 37. Rc7 {[%clk 0:00:40.6]} 37... Rd1+ {[%clk 0:00:16.1]} 38. Rxd1
{[%clk 0:00:40]} 38... Rxd1+ {[%clk 0:00:15.4]} 39. Kh2 {[%clk 0:00:37.1]} 39...
Kd6 {[%clk 0:00:15.2]} 40. Rc8 {[%clk 0:00:36.3]} 40... Ra1 {[%clk 0:00:09.7]}
41. Ra8 {[%clk 0:00:34]} 41... c5 {[%clk 0:00:09.2]} 42. f3 {[%clk 0:00:31.8]}
42... c4 {[%clk 0:00:04.5]} 43. f4 {[%clk 0:00:31.1]} 43... c3 {[%clk
0:00:02.3]} 44. Rc8 {[%clk 0:00:29.9]} 1-0

[Event "Betsys MČR v online bleskovém šachu 2021"]
[Site "Chess.com"]
[Date "2021.04.17"]
[Round "3"]
[White "MichalTrhal"]
[Black "Z_u_z_i"]
[Result "1-0"]
[WhiteElo "1925"]
[BlackElo "1543"]
[TimeControl "180+1"]
[EndTime "9:27:21 PDT"]
[Termination "Uživatel MichalTrhal zvítězil na čas"]

1. e4 {[%clk 0:02:59.6]} 1... c5 {[%clk 0:02:59.3]} 2. Nf3 {[%clk 0:02:56.8]}
2... e6 {[%clk 0:02:58.8]} 3. d4 {[%clk 0:02:56.7]} 3... cxd4 {[%clk 0:02:57.8]}
4. Nxd4 {[%clk 0:02:57.2]} 4... Nc6 {[%clk 0:02:57.7]} 5. Nb3 {[%clk 0:02:56]}
5... a6 {[%clk 0:02:55.3]} 6. g3 {[%clk 0:02:53.5]} 6... Nf6 {[%clk 0:02:54.3]}
7. Bg2 {[%clk 0:02:53.5]} 7... Be7 {[%clk 0:02:50.9]} 8. O-O {[%clk 0:02:53.4]}
8... O-O {[%clk 0:02:50.2]} 9. c4 {[%clk 0:02:53.3]} 9... b5 {[%clk 0:02:36.5]}
10. e5 {[%clk 0:02:45]} 10... Ne8 {[%clk 0:02:29.1]} 11. c5 {[%clk 0:02:25.5]}
11... Bb7 {[%clk 0:02:28]} 12. Nc3 {[%clk 0:02:21.6]} 12... Rc8 {[%clk 0:02:26]}
13. Re1 {[%clk 0:01:56.9]} 13... f6 {[%clk 0:02:16.3]} 14. exf6 {[%clk
0:01:48.9]} 14... Nxf6 {[%clk 0:02:15.4]} 15. Be3 {[%clk 0:01:30.4]} 15... Qc7
{[%clk 0:01:56.1]} 16. Rc1 {[%clk 0:01:29.6]} 16... Rcd8 {[%clk 0:01:48.1]} 17.
Ne2 {[%clk 0:01:21.5]} 17... Ng4 {[%clk 0:01:24.8]} 18. Nf4 {[%clk 0:01:21.5]}
18... Nxe3 {[%clk 0:01:24.2]} 19. Rxe3 {[%clk 0:01:21.4]} 19... Nb4 {[%clk
0:01:10.3]} 20. Qd4 {[%clk 0:00:57.4]} 20... Nc6 {[%clk 0:00:57.5]} 21. Bxc6
{[%clk 0:00:52.1]} 21... Bxc6 {[%clk 0:00:55.6]} 22. Nh5 {[%clk 0:00:47.8]}
22... Bf6 {[%clk 0:00:48.7]} 23. Nxf6+ {[%clk 0:00:47.7]} 23... Rxf6 {[%clk
0:00:48.1]} 24. Rce1 {[%clk 0:00:47]} 24... Rdf8 {[%clk 0:00:47]} 25. f4 {[%clk
0:00:46.5]} 25... Bd5 {[%clk 0:00:40]} 26. Nc1 {[%clk 0:00:40.5]} 26... Qc6
{[%clk 0:00:38]} 27. Nd3 {[%clk 0:00:37.5]} 27... Bh1 {[%clk 0:00:31.4]} 28.
R1e2 {[%clk 0:00:37.8]} 28... Bd5 {[%clk 0:00:29.6]} 29. Ne5 {[%clk 0:00:37.7]}
29... Qc7 {[%clk 0:00:22.1]} 30. c6 {[%clk 0:00:37.8]} 30... dxc6 {[%clk
0:00:20.3]} 31. Qc5 {[%clk 0:00:35]} 31... Bc4 {[%clk 0:00:17.9]} 32. Rd2 {[%clk
0:00:33.4]} 32... Bd5 {[%clk 0:00:15.3]} 33. a3 {[%clk 0:00:27.5]} 33... Rd8
{[%clk 0:00:14.6]} 34. Red3 {[%clk 0:00:25.7]} 34... Rff8 {[%clk 0:00:13.7]} 35.
b4 {[%clk 0:00:24.3]} 35... Rd6 {[%clk 0:00:09.2]} 36. Qe3 {[%clk 0:00:20.3]}
36... Rfd8 {[%clk 0:00:08.5]} 37. Ng4 {[%clk 0:00:19.7]} 37... Bc4 {[%clk
0:00:06.4]} 38. Rd4 {[%clk 0:00:18.7]} 38... Rxd4 {[%clk 0:00:03.3]} 39. Rxd4
{[%clk 0:00:18.5]} 39... Rxd4 {[%clk 0:00:03.3]} 40. Qxd4 {[%clk 0:00:19]} 1-0